bitfinex/quotes_ETHUSD_20250724
["timestamp","ask_amount","ask_price","bid_price","bid_amount"]
[1753397481021,10.13838307,3724.0,3723.9,0.001]
[1753397483348,10.13838307,3724.0,3723.9,1e-08]
[1753397484937,17.12538307,3724.0,3723.9,1e-08]
[1753397488251,20.12538307,3724.0,3723.9,1e-08]
[1753397489659,20.12538307,3724.0,3723.1,0.001]
[1753397489660,2.68586162,3723.2,3723.1,0.001]
[1753397489841,7.98686162,3723.2,3723.1,0.001]
[1753397490035,9.04336162,3723.2,3723.1,0.001]
[1753397490959,2.68636668,3722.5,3722.4,0.001]
[1753397491161,7.18036668,3722.5,3722.4,0.001]
[1753397491549,8.10246668,3722.5,3722.4,0.001]
[1753397492466,8.88286668,3722.5,3722.4,0.001]
[1753397493743,4.483,3722.5,3722.4,0.001]
[1753397494137,4.483,3722.5,3722.4,0.1354]
[1753397496056,7.1962269,3722.5,3722.4,0.1354]
[1753397496262,9.12494938,3722.5,3722.4,0.001]
[1753397498300,9.91254938,3722.5,3722.4,0.001]
[1753397504086,2.68694413,3721.7,3721.1,0.04000001]
[1753397504259,14.15580435,3721.7,3721.1,0.04000001]
[1753397504451,18.0326831,3721.7,3721.1,0.04000001]
[1753397506081,13.5806831,3721.7,3721.1,0.04000001]
[1753397506254,15.99644413,3721.7,3721.1,0.04000001]
[1753397508555,15.98844413,3721.7,3721.1,0.04000001]
[1753397509079,15.99674413,3721.7,3721.1,0.04000001]
[1753397509386,2.68730517,3721.2,3721.1,0.04000001]
[1753397509587,7.26170517,3721.2,3721.1,0.04000001]
[1753397509786,4.75298365,3721.2,3721.1,0.04000001]
[1753397509956,9.21984387,3721.2,3721.1,0.04000001]
[1753397510157,9.19298365,3721.2,3721.1,0.04000001]
[1753397510655,9.94588365,3721.2,3721.1,1e-08]
[1753397511812,9.94588365,3721.2,3720.4,0.001]
[1753397511813,2.68781077,3720.5,3720.4,0.001]
[1753397511977,3.60197099,3720.5,3720.4,0.001]
[1753397512181,4.53567099,3720.5,3720.4,0.001]
[1753397512386,8.97067099,3720.5,3720.4,0.001]
[1753397512713,8.94381077,3720.5,3720.4,0.001]
[1753397512890,10.10696406,3720.5,3720.4,0.001]
[1753397513491,4.73826406,3720.5,3720.4,0.001]
[1753397513805,8.18791077,3720.5,3720.4,0.001]
[1753397516793,8.18491077,3720.5,3720.4,0.001]
[1753397518922,7.70681077,3720.5,3720.4,0.001]
[1753397519105,8.18491077,3720.5,3720.4,0.001]
[1753397519309,9.42668537,3720.5,3720.4,0.001]
[1753397519687,9.11163228,3723.6,3720.4,0.001]
[1753397519952,0.002,3724.8,3723.8,2.68542886]
[1753397519953,0.002,3724.6,3723.8,2.68542886]
[1753397520225,0.002,3724.6,3723.8,9.82371676]
[1753397520391,0.002,3724.6,3723.8,36.22563486]
[1753397520592,4.756,3724.4,3723.8,38.54251472]
[1753397520787,0.002,3724.6,3723.8,36.36003486]
[1753397521016,4.764,3724.6,3724.5,36.22513015]
[1753397521230,4.764,3724.6,3724.5,36.60883328]
[1753397521740,4.769,3724.6,3724.5,36.60883328]
[1753397522041,4.769,3724.6,3724.5,36.35953015]
[1753397522343,0.002,3724.6,3724.5,39.05862191]
[1753397522547,4.771,3724.6,3724.5,39.05862191]
[1753397529266,4.31773234,3724.6,3724.5,39.20682774]
[1753397529569,4.31773234,3724.6,3724.5,32.97190359]
[1753397529782,4.31773234,3724.6,3724.5,30.13841183]
[1753397530769,4.31773234,3724.6,3724.5,30.38516251]
[1753397532477,4.31773234,3724.6,3724.5,30.13841183]
[1753397533461,0.002,3724.8,3724.6,29.990206]
[1753397533658,0.002,3724.8,3724.7,32.83750359]
[1753397533947,4.741,3724.8,3724.7,30.13841183]
[1753397534471,8.38626812,3724.8,3724.7,30.13841183]
[1753397534637,8.3594079,3724.8,3724.7,30.13804776]
[1753397538976,7.8813079,3724.8,3724.7,30.13804776]
[1753397539289,9.1276079,3724.8,3724.7,30.13804776]
[1753397539584,10.45582564,3724.8,3724.7,30.13804776]
[1753397539795,10.45582564,3724.8,3724.7,22.17561176]
[1753397539796,10.59022564,3724.8,3724.7,22.17561176]
[1753397540112,2.68586162,3723.2,3723.1,0.001]
[1753397540391,9.38844778,3723.2,3723.1,0.001]
[1753397540593,9.52284778,3723.2,3723.1,0.24790618]
[1753397540899,2.68545491,3723.8,3723.1,0.24790618]
[1753397540900,1e-08,3726.3,3724.3,6.98413666]
[1753397541193,0.5061,3727.9,3726.6,0.55]
[1753397541412,4.878,3726.8,3726.0,3.0]
[1753397541554,4.878,3726.8,3726.1,0.02683771]
[1753397541755,0.4661,3727.5,3726.6,3.23341115]
[1753397541994,0.04,3727.9,3726.8,0.55]
[1753397541995,0.5061,3727.9,3726.8,0.55]
[1753397542156,4.925,3726.9,3726.8,0.55]
[1753397542356,4.925,3726.9,3726.8,3.23326714]
[1753397542555,0.04,3726.9,3726.8,3.23326714]
[1753397542757,4.924,3726.9,3726.8,3.23326714]
[1753397543763,4.924,3726.9,3726.5,3.55]
[1753397543963,4.924,3726.9,3726.8,0.55]
[1753397544360,4.924,3726.9,3726.8,6.91159943]
[1753397544361,0.04,3726.9,3726.8,6.91159943]
[1753397544662,4.916,3726.9,3726.8,6.91159943]
[1753397545286,0.04,3726.9,3726.8,6.91159943]
[1753397546097,4.906,3726.9,3726.8,6.91159943]
[1753397546465,4.906,3726.9,3726.8,6.23326714]
[1753397547172,4.904,3726.9,3726.8,6.23326714]
[1753397547777,0.04,3726.9,3726.8,6.23326714]
[1753397547967,4.903,3726.9,3726.8,6.23326714]
[1753397548876,4.903,3726.9,3726.8,3.55]
[1753397549275,4.903,3726.9,3726.8,3.79921945]
[1753397549684,4.903,3726.9,3726.8,3.55]
[1753397549913,4.903,3726.9,3726.8,6.23326714]
[1753397550120,4.19164363,3726.9,3726.8,6.4823346]
[1753397550985,4.04065017,3726.9,3726.8,6.6167346]
[1753397551909,4.04065017,3726.9,3726.8,6.76590843]
[1753397552301,4.04065017,3726.9,3726.8,6.6167346]
[1753397554517,4.04065017,3726.9,3726.8,3.93346746]
[1753397554732,0.04,3727.9,3726.9,3.0]
[1753397554884,4.838,3727.4,3727.1,6.23305116]
[1753397555218,0.04,3727.9,3727.1,6.23305116]
[1753397555219,0.04,3727.9,3727.1,6.61560082]
[1753397555507,4.84,3727.3,3727.1,6.61560082]
[1753397556095,4.838,3727.4,3727.1,6.61560082]
[1753397559508,0.04,3727.9,3727.1,6.61560082]
[1753397559742,0.002,3728.7,3728.6,0.55]
[1753397560047,0.002,3728.7,3728.6,0.79814966]
[1753397560243,0.002,3728.7,3728.6,6.48012144]
[1753397560408,0.002,3728.7,3728.6,7.39634427]
[1753397561397,0.002,3728.7,3728.6,4.71437249]
[1753397561603,0.002,3728.7,3728.6,0.79814966]
[1753397562133,0.002,3728.7,3728.6,0.55]
[1753397563232,0.002,3728.7,3728.0,0.55]
[1753397563233,0.4681,3728.7,3728.0,0.55]
[1753397563440,3.15006202,3728.7,3728.0,0.55]
[1753397563633,3.15006202,3728.7,3728.0,2.00709687]
[1753397564152,0.4681,3728.7,3728.0,4.68949805]
[1753397564548,3.15001606,3728.7,3728.0,4.68949805]
[1753397564720,2.68204867,3728.5,3728.0,2.00709687]
[1753397565047,0.4681,3728.7,3728.0,2.00709687]
[1753397565048,2.68197296,3728.6,3728.0,2.00709687]
[1753397565243,2.68197296,3728.6,3728.2,0.55]
[1753397566141,0.4681,3728.7,3728.2,0.55]
[1753397566558,3.15001853,3728.7,3728.2,0.55]
[1753397566874,0.4681,3728.7,3728.2,3.55]
[1753397567369,2.68198181,3728.6,3728.2,0.55]
[1753397567771,2.68197439,3728.6,3728.2,1.3083874]
[1753397568168,3.11387439,3728.6,3728.2,1.3083874]
[1753397568869,0.4319,3728.6,3728.2,1.3083874]
[1753397569243,0.4319,3728.6,3728.2,4.3083874]
[1753397569779,0.4319,3728.6,3728.5,0.6844]
[1753397570983,0.002,3728.7,3728.6,0.55]
[1753397571361,0.4339,3728.7,3728.5,0.1344]
[1753397571567,0.4339,3728.7,3728.6,0.55]
[1753397572190,0.002,3728.7,3728.6,3.59544909]
[1753397573468,0.002,3728.7,3728.6,6.59544909]
[1753397573669,0.002,3728.7,3728.6,6.56862938]
[1753397574855,0.002,3728.7,3728.2,0.7583874]
[1753397575165,0.002,3728.7,3728.3,3.0]
[1753397575490,0.002,3728.7,3728.6,6.23197178]
[1753397576462,0.002,3728.7,3728.6,3.55]
[1753397577198,0.002,3728.7,3728.6,6.25879149]
[1753397577401,0.002,3728.7,3728.6,6.23197178]
[1753397577555,0.002,3728.7,3728.6,7.12337967]
[1753397580567,0.002,3728.7,3728.6,11.93337967]
[1753397582199,0.002,3728.7,3728.6,12.06777967]
[1753397582774,0.002,3728.7,3728.6,7.25777967]
[1753397582978,0.002,3728.7,3728.6,12.05977967]
[1753397583982,0.002,3728.7,3728.6,7.25777967]
[1753397584391,0.002,3728.7,3728.6,12.05377967]
[1753397586412,0.002,3729.5,3729.4,6.23139647]
[1753397586612,0.002,3729.5,3729.4,11.02639647]
[1753397588799,0.002,3729.5,3729.4,18.89974004]
[1753397589204,0.002,3729.5,3729.4,14.10474004]
[1753397589420,0.002,3729.5,3729.4,18.90074004]
[1753397589616,0.002,3729.5,3729.4,21.05896235]
[1753397592909,0.002,3729.5,3729.4,21.04296235]
[1753397593926,0.002,3729.5,3729.4,16.26296235]
[1753397594130,0.002,3729.5,3729.4,21.04296235]
[1753397595734,0.002,3729.5,3729.4,21.03796235]
[1753397596301,0.002,3729.5,3729.4,21.17236235]
[1753397600243,0.002,3729.5,3729.4,20.69736235]
[1753397600532,0.002,3729.5,3729.4,25.44636235]
[1753397604406,0.2495,3730.1,3730.0,6.23096514]
[1753397604659,0.2495,3730.1,3730.0,19.13595713]
[1753397605159,0.2495,3730.1,3730.0,19.27035713]
[1753397605317,0.499,3730.4,3730.3,6.23074953]
[1753397605714,0.499,3730.4,3730.3,11.10214953]
[1753397608057,0.499,3730.4,3730.3,11.98955742]
[1753397609952,0.002,3730.9,3730.8,3.23039026]
[1753397610136,0.002,3730.9,3730.8,10.96239026]
[1753397610454,0.002,3730.9,3730.8,11.09679026]
[1753397610758,0.002,3730.9,3730.8,12.57037894]
[1753397611533,0.7735,3731.7,3731.6,3.22981562]
[1753397611534,0.002,3731.7,3731.6,3.22981562]
[1753397611729,0.002,3731.7,3731.6,8.09941562]
[1753397611944,0.4477,3731.7,3731.6,8.09941562]
[1753397613453,0.002,3731.7,3731.6,11.10141562]
[1753397613647,0.002,3731.7,3731.6,13.25963793]
[1753397615650,0.002,3731.7,3731.6,8.52163793]
[1753397615859,0.002,3731.7,3731.6,13.26163793]
[1753397616516,0.002,3731.7,3731.6,8.52163793]
[1753397616714,0.002,3731.7,3731.6,13.27063793]
[1753397617173,0.002,3731.7,3731.6,8.52163793]
[1753397617374,0.4477,3731.7,3731.6,11.11641562]
[1753397619300,0.002,3731.7,3731.6,11.11641562]
[1753397619896,0.002,3731.7,3731.6,6.36341562]
[1753397620120,0.4477,3731.7,3731.6,11.11941562]
[1753397620763,0.4477,3731.7,3731.6,6.36341562]
[1753397620970,0.4477,3731.7,3731.6,12.81108187]
[1753397621195,0.002,3731.7,3731.6,12.81108187]
[1753397621514,0.4477,3731.7,3731.6,8.05508187]
[1753397621818,0.9029,3731.7,3731.6,6.36341562]
[1753397621995,0.9029,3731.7,3731.6,8.4346]
[1753397622178,0.9029,3731.7,3731.6,6.36341562]
[1753397622704,0.9029,3731.7,3731.6,11.12041562]
[1753397624216,0.9029,3731.7,3731.6,6.36341562]
[1753397624390,0.9029,3731.7,3731.6,11.12041562]
[1753397624586,0.9029,3731.7,3731.6,3.6836]
[1753397626183,0.9029,3731.7,3731.6,6.36341562]
[1753397626409,0.9029,3731.7,3731.6,3.6836]
[1753397627727,0.9029,3731.7,3731.6,6.36341562]
[1753397628932,0.4477,3731.7,3731.6,6.36341562]
[1753397629133,0.9106,3731.7,3731.6,6.36341562]
[1753397629331,0.9106,3731.7,3731.6,3.6836]
[1753397629535,0.9106,3731.7,3731.6,0.1336]
[1753397629742,3.59034381,3731.7,3731.6,0.1336]
[1753397629940,3.59034381,3731.7,3731.1,3.0]
[1753397629941,2.67985368,3731.6,3730.9,0.001]
[1753397630138,2.68003968,3731.3,3731.2,0.1344]
[1753397630637,3.59103968,3731.3,3731.2,0.1344]
[1753397633341,4.38113968,3731.3,3731.2,0.1344]
[1753397634045,4.38113968,3731.3,3730.9,0.001]
[1753397634046,3.47034658,3731.0,3730.9,0.001]
[1753397634259,8.2002068,3731.0,3730.9,0.001]
[1753397634548,9.08434658,3731.0,3730.9,0.001]
[1753397639006,8.62144658,3731.0,3730.9,0.001]
[1753397639215,9.08434658,3731.0,3730.9,0.001]
[1753397639448,10.57261245,3731.0,3730.9,0.001]
[1753397640338,10.54261245,3731.0,3730.9,0.001]
[1753397643934,10.67701245,3731.0,3730.9,0.001]
[1753397656298,6.00401245,3731.0,3730.9,0.001]
[1753397656477,10.60401245,3731.0,3730.9,0.001]
[1753397659099,2.6808214,3730.2,3730.1,0.001]
[1753397659290,7.29468162,3730.2,3730.1,0.001]
[1753397659490,9.0229214,3730.2,3730.1,0.001]
[1753397659797,9.1573214,3730.2,3730.1,0.001]
[1753397660265,9.1523214,3730.2,3730.1,0.001]
[1753397660461,10.85321854,3730.2,3730.1,0.001]
[1753397661089,16.02913125,3730.2,3730.1,0.001]
[1753397662090,6.27121854,3730.2,3730.1,0.001]
[1753397662293,7.3922214,3730.2,3730.1,0.001]
[1753397662689,7.8257214,3730.2,3730.1,0.001]
[1753397662889,8.3173214,3730.2,3730.1,0.001]
[1753397663907,9.0731214,3730.2,3730.1,0.001]
[1753397669002,8.5815214,3730.2,3730.1,0.001]
[1753397669211,10.71693854,3730.2,3730.1,1e-08]
[1753397669610,13.71693854,3730.2,3730.1,1e-08]
[1753397670518,13.68393854,3730.2,3730.1,1e-08]
[1753397672119,9.13993854,3730.2,3730.1,1e-08]
[1753397672318,13.67693854,3730.2,3730.1,1e-08]
[1753397673233,2.8152214,3730.2,3730.1,1e-08]
[1753397673430,7.3502214,3730.2,3730.1,1e-08]
[1753397675825,7.2158214,3730.2,3730.1,1e-08]
[1753397680338,7.6493214,3730.2,3730.1,1e-08]
[1753397680726,1.2429,3731.7,3730.2,0.55]
[1753397680926,4.535,3731.5,3730.5,5.17591271]
[1753397681131,2.68015534,3731.2,3730.5,5.30971271]
[1753397681456,4.535,3731.1,3730.5,7.8565184]
[1753397681656,4.535,3731.0,3730.6,2.81432589]
[1753397681819,4.535,3731.0,3730.6,3.80621453]
[1753397682015,4.535,3731.0,3730.7,0.1338]
[1753397682332,4.535,3731.0,3730.8,0.1338]
[1753397683049,0.002,3731.6,3730.8,0.1338]
[1753397683050,4.535,3730.9,3730.8,0.1338]
[1753397683260,4.535,3730.9,3730.6,1.12568864]
[1753397683554,4.535,3730.9,3730.3,0.55]
[1753397683555,7.21532574,3730.9,3730.3,0.55]
[1753397683858,2.70725048,3730.8,3730.3,0.6045519]
[1753397684148,4.535,3730.7,3730.3,0.6045519]
[1753397684354,4.535,3730.7,3730.3,0.1338]
[1753397684855,7.21547106,3730.7,3730.3,0.1338]
[1753397685156,4.535,3730.7,3730.3,0.1338]
[1753397686855,4.537,3730.7,3730.3,0.1338]
[1753397687352,4.537,3730.7,3730.2,0.55]
[1753397687556,4.537,3730.7,3730.2,3.83537876]
[1753397687876,4.537,3730.7,3730.2,3.96917876]
[1753397688460,4.537,3730.7,3730.2,1.28837123]
[1753397688955,0.002,3730.7,3730.6,11.40644667]
[1753397689166,0.002,3730.7,3730.6,11.54024667]
[1753397689362,0.002,3730.7,3730.6,13.23040835]
[1753397690658,0.002,3730.7,3730.6,13.36480835]
[1753397692280,0.002,3730.7,3730.6,8.18889564]
[1753397696189,0.002,3730.7,3730.6,3.36493396]
[1753397696588,0.002,3730.7,3730.6,0.1344]
[1753397696752,0.4316,3730.7,3730.6,0.1344]
[1753397698894,0.002,3730.7,3730.1,0.55000001]
[1753397699096,0.002,3730.7,3730.3,0.55]
[1753397699394,0.002,3730.7,3730.2,3.55]
[1753397699551,2.68250069,3730.7,3730.2,0.55]
[1753397699887,3.11210069,3730.7,3730.1,3.55000001]
[1753397700591,2.68054206,3730.6,3730.1,1e-08]
[1753397700891,3.11207984,3730.7,3730.1,1e-08]
[1753397701078,2.68054144,3730.6,3730.1,1e-08]
[1753397701274,3.11014144,3730.6,3730.1,1e-08]
[1753397701724,3.11020766,3730.5,3730.1,1e-08]
[1753397701924,3.11020766,3730.5,3730.1,0.55000001]
[1753397702228,0.4296,3730.5,3730.1,0.55000001]
[1753397702588,3.11021063,3730.5,3730.1,1e-08]
[1753397703127,0.4296,3730.5,3730.1,1e-08]
[1753397703429,0.4296,3730.4,3730.1,1e-08]
[1753397703828,0.02686022,3730.5,3730.1,1e-08]
[1753397704023,2.6808214,3730.2,3730.1,1e-08]
[1753397704227,2.70768162,3730.2,3730.1,1e-08]
[1753397704416,3.60028162,3730.2,3730.1,1e-08]
[1753397704616,5.34270753,3730.2,3730.1,1e-08]
[1753397708843,5.47710753,3730.2,3730.1,1e-08]
[1753397714951,5.45024731,3730.2,3730.1,1e-08]
[1753397716255,5.02064731,3730.2,3730.1,1e-08]
[1753397716459,3.5845214,3730.2,3730.1,1e-08]
[1753397717083,8.1105214,3730.2,3730.1,1e-08]
[1753397718677,7.2068214,3730.2,3730.1,1e-08]
[1753397718836,7.6475214,3730.2,3730.1,1e-08]
[1753397719168,8.1203214,3730.2,3730.1,1e-08]
[1753397719869,4.526,3730.2,3730.1,1e-08]
[1753397723171,1.43422883,3732.9,3730.1,4.8448482]
[1753397723474,0.88600139,3732.8,3732.3,3.22931302]
[1753397723669,0.88600139,3732.8,3732.3,6.25610615]
[1753397723872,4.542,3733.4,3732.3,6.22931302]
[1753397724053,0.65043137,3733.3,3732.3,6.36311302]
[1753397724243,4.543,3733.2,3732.3,6.36311302]
[1753397724574,0.25017377,3733.1,3732.3,6.36311302]
[1753397724780,0.25012187,3733.1,3732.3,6.36311302]
[1753397725073,4.54,3733.2,3732.3,6.36311302]
[1753397725273,0.25010195,3733.1,3732.3,6.36311302]
[1753397725852,0.25010195,3733.1,3732.3,3.6838]
[1753397726049,0.25010195,3733.1,3732.3,4.18632072]
[1753397726251,0.25010195,3733.1,3732.3,0.63632072]
[1753397726451,0.4407,3732.7,3731.7,3.55]
[1753397726651,0.4407,3732.7,3731.7,0.55]
[1753397727068,2.68125022,3732.4,3731.7,0.55]
[1753397727383,0.002,3732.4,3731.7,0.57679743]
[1753397727571,0.002,3732.4,3731.9,0.55]
[1753397727975,0.002,3732.4,3731.9,3.6838]
[1753397728282,0.002,3732.4,3731.9,0.6838]
[1753397728483,2.68124418,3732.4,3731.9,0.6838]
[1753397728700,0.002,3732.4,3731.9,0.55]
[1753397728896,2.67938204,3732.3,3731.9,0.98607797]
[1753397729187,2.68125878,3732.4,3731.9,0.98607797]
[1753397730766,2.68125878,3732.4,3731.6,3.0]
[1753397730767,2.67951191,3732.1,3731.6,3.0]
[1753397730968,0.9135,3732.3,3731.5,3.0]
[1753397731284,2.67953169,3732.0,3731.6,0.55]
[1753397732784,2.67953169,3732.0,3731.5,0.55]
[1753397733011,2.67962745,3731.9,3731.5,0.55]
[1753397733284,2.6795364,3732.0,3731.5,1.3571]
[1753397733587,2.6795364,3732.0,3731.8,0.1336]
[1753397734387,2.67953475,3732.0,3731.8,0.1336]
[1753397734952,0.9135,3732.3,3731.8,0.1336]
[1753397735356,2.67950716,3732.1,3731.5,1.3571]
[1753397735558,0.9135,3732.3,3732.2,0.1336]
[1753397735790,2.67951484,3732.1,3731.5,0.55]
[1753397735983,2.67951484,3732.1,3731.7,0.55]
[1753397736293,2.67951484,3732.1,3732.0,0.1336]
[1753397739718,3.15231484,3732.1,3732.0,0.1336]
[1753397740208,2.67951484,3732.1,3732.0,0.1336]
[1753397741010,4.52,3732.2,3732.0,0.1336]
[1753397741216,4.52,3732.2,3731.6,3.55]
[1753397741376,4.52,3732.2,3731.8,3.55]
[1753397743200,4.52,3732.2,3731.8,3.22965776]
[1753397743918,4.52,3732.2,3731.8,3.55]
[1753397744324,4.52,3732.2,3731.5,3.0]
[1753397744325,2.67950679,3732.1,3731.5,3.0]
[1753397744527,3.12020679,3732.1,3731.5,0.55]
[1753397744826,4.52,3732.2,3731.7,0.55]
[1753397745030,4.52,3732.2,3731.7,3.22971054]
[1753397745238,4.52,3732.2,3731.6,3.22979303]
[1753397745693,4.52,3732.2,3731.6,0.55]
[1753397746102,4.52,3732.2,3732.0,0.55]
[1753397746630,0.002,3732.4,3732.0,0.55]
[1753397747151,2.68125394,3732.4,3732.0,0.55]
[1753397747516,0.002,3732.4,3732.0,0.55]
[1753397747720,0.002,3732.4,3732.0,0.905]
[1753397751117,0.002,3732.4,3732.3,0.1336]
[1753397756226,0.002,3732.4,3732.3,0.6836]
[1753397756526,0.002,3732.4,3732.3,3.49671302]
[1753397757565,0.002,3732.4,3732.3,3.36291302]
[1753397757764,0.002,3732.4,3732.3,4.43212411]
[1753397761543,0.002,3732.4,3732.3,1.75281109]
[1753397761966,0.002,3732.4,3732.3,0.6836]
[1753397766058,0.002,3732.4,3732.3,0.1336]
[1753397766260,0.9678,3732.4,3732.3,0.1336]
[1753397769173,0.4749,3732.4,3732.3,0.1336]
[1753397770109,0.002,3732.4,3732.3,0.1336]
[1753397770406,0.4749,3732.4,3732.3,0.1336]
[1753397770760,0.9678,3732.4,3732.3,0.1336]
[1753397771170,3.64704123,3732.4,3732.3,0.1336]
[1753397771467,5.329137,3732.4,3732.3,0.1336]
[1753397771678,6.104937,3732.4,3732.3,0.1336]
[1753397771994,2.6795371,3732.0,3731.5,0.55]
[1753397772359,2.6795371,3732.0,3731.9,0.1336]
[1753397773095,3.67219732,3732.0,3731.9,0.1336]
[1753397773394,0.9658,3732.0,3731.9,0.1336]
[1753397773593,3.94643127,3732.0,3731.9,0.1336]
[1753397773887,3.47664408,3731.9,3731.8,0.1336]
[1753397774077,9.61369753,3731.9,3731.8,0.1336]
[1753397776366,2.67995926,3731.4,3731.3,0.001]
[1753397776574,7.18795926,3731.4,3731.3,0.001]
[1753397776957,3.62635926,3731.4,3731.3,0.1354]
[1753397779157,8.13335926,3731.4,3731.3,0.1354]
[1753397780062,5.4534,3731.4,3731.3,0.1354]
[1753397780258,8.13335926,3731.4,3731.3,0.1354]
[1753397785022,4.507,3731.4,3731.3,0.1354]
[1753397785233,1.2895,3731.9,3731.3,0.1354]
[1753397785439,4.505,3731.8,3731.3,0.1354]
[1753397785648,0.4539,3731.7,3731.3,0.001]
[1753397785834,4.505,3731.6,3731.3,0.001]
[1753397786333,4.505,3731.6,3731.5,0.1336]
[1753397787458,5.4514,3731.6,3731.5,0.1336]
[1753397787763,8.13121562,3731.6,3731.5,0.1336]
[1753397787964,5.4514,3731.6,3731.5,0.1336]
[1753397788965,8.13121562,3731.6,3731.5,0.1336]
[1753397789142,5.4514,3731.6,3731.5,0.1336]
[1753397790242,8.13121562,3731.6,3731.5,0.1336]
[1753397790443,5.4514,3731.6,3731.5,0.1336]
[1753397792444,5.4514,3731.6,3731.5,0.1346]
[1753397793067,8.13121562,3731.6,3731.5,0.1346]
[1753397793370,7.18481562,3731.6,3731.5,0.1346]
[1753397793572,4.505,3731.6,3731.5,0.1346]
[1753397793770,4.9589,3731.6,3731.5,0.1346]
[1753397794141,5.4514,3731.6,3731.5,0.1346]
[1753397796684,8.13121562,3731.6,3731.5,0.1346]
[1753397796970,5.4514,3731.6,3731.5,0.1346]
[1753397797777,7.67731562,3731.6,3731.5,0.1346]
[1753397797966,8.13121562,3731.6,3731.5,0.1346]
[1753397798569,7.67731562,3731.6,3731.5,0.1346]
[1753397798772,9.76394061,3731.6,3731.5,0.001]
[1753397798973,10.02404061,3731.6,3731.5,0.001]
[1753397799163,10.51654061,3731.6,3731.5,0.001]
[1753397799963,3.43255926,3731.4,3731.3,0.001]
[1753397800284,13.09981271,3731.4,3731.3,0.001]
[1753397800459,15.89813406,3731.4,3731.3,0.001]
[1753397802564,3.43284658,3731.0,3730.9,0.001]
[1753397802892,13.26036025,3731.0,3730.9,0.001]
[1753397803186,14.17990003,3731.0,3730.9,0.001]
[1753397806183,14.17990003,3731.0,3730.9,1e-08]
[1753397806383,15.86590597,3731.0,3730.9,1e-08]
[1753397808970,15.85830597,3731.0,3730.9,1e-08]
[1753397809168,11.36330597,3731.0,3730.9,1e-08]
[1753397809471,15.85530597,3731.0,3730.9,1e-08]
[1753397810572,15.85430597,3731.0,3730.9,1e-08]
[1753397815423,15.85230597,3731.0,3730.9,1e-08]
[1753397815820,11.36330597,3731.0,3730.9,1e-08]
[1753397816025,3.29954658,3731.0,3730.9,1e-08]
[1753397816224,7.30264658,3731.0,3730.9,1e-08]
[1753397816438,8.22164658,3731.0,3730.9,1e-08]
[1753397816602,13.39290003,3731.0,3730.9,1e-08]
[1753397816800,14.19450003,3731.0,3730.9,1e-08]
[1753397817005,15.88196597,3731.0,3730.9,1e-08]
[1753397818904,14.59546597,3731.0,3730.9,1e-08]
[1753397819345,4.486,3731.0,3730.9,1e-08]
[1753397825049,7.60034658,3731.0,3730.9,1e-08]
[1753397825555,14.01790003,3731.0,3730.9,1e-08]
[1753397826165,2.68024658,3731.0,3730.9,1e-08]
[1753397826310,7.16124658,3731.0,3730.9,1e-08]
[1753397827942,9.15628238,3731.0,3730.9,1e-08]
[1753397829336,9.29068238,3731.0,3730.9,1e-08]
[1753397830533,0.1344,3731.0,3730.9,1e-08]
[1753397830733,4.478,3731.3,3730.9,1e-08]
[1753397831049,4.477,3731.2,3730.9,1e-08]
[1753397831247,4.478,3731.1,3731.0,0.1338]
[1753397831427,4.478,3731.1,3731.0,3.36404658]
[1753397831752,4.478,3731.1,3731.0,3.70055124]
[1753397833638,4.478,3731.1,3731.0,0.88650466]
[1753397834616,4.478,3731.1,3731.0,3.56675124]
[1753397835647,4.478,3731.1,3731.0,0.88650466]
[1753397836432,4.478,3731.1,3731.0,3.56675124]
[1753397836618,0.002,3731.8,3731.0,0.88650466]
[1753397836949,0.002,3731.8,3731.7,11.40099726]
[1753397837156,0.002,3731.8,3731.7,12.80907997]
[1753397837548,0.002,3731.8,3731.7,12.94287997]
[1753397840643,0.002,3731.8,3731.7,13.07647997]
[1753397841426,0.002,3731.8,3731.7,17.54647997]
[1753397841824,0.002,3731.8,3731.7,13.07647997]
[1753397842149,0.002,3731.8,3731.7,17.54647997]
[1753397842458,0.002,3731.8,3731.7,7.77142652]
[1753397842760,0.002,3731.8,3731.7,7.90522652]
[1753397844967,0.002,3731.8,3731.7,5.09168271]
[1753397845265,0.002,3731.8,3731.7,5.81334381]
[1753397845862,0.002,3731.8,3731.7,6.36334381]
[1753397852122,0.002,3731.8,3731.7,3.6836]
[1753397852851,0.002,3731.8,3731.7,6.36334381]
[1753397853976,0.002,3731.8,3731.7,3.6836]
[1753397855192,0.002,3731.8,3731.7,6.36334381]
[1753397857403,0.002,3731.8,3731.7,8.14396631]
[1753397859984,0.002,3731.8,3731.7,8.27776631]
[1753397863576,0.002,3731.8,3731.7,8.14396631]
[1753397863775,0.002,3731.8,3731.7,12.59996631]
[1753397864910,0.002,3731.8,3731.7,16.89996631]
[1753397865114,0.002,3731.8,3731.7,17.03376631]
[1753397865413,0.002,3731.8,3731.7,16.89996631]
[1753397865618,0.002,3731.8,3731.7,17.03376631]
[1753397866382,0.002,3731.8,3731.7,16.89996631]
[1753397868179,0.002,3731.8,3731.7,17.03376631]
[1753397868407,1e-08,3731.8,3731.7,17.03376631]
[1753397869888,1e-08,3731.8,3731.7,12.73376631]
[1753397870121,0.0006224,3731.9,3731.8,6.229672]
[1753397870433,0.0006224,3731.9,3731.8,8.68992397]
[1753397871841,0.0006224,3731.9,3731.8,8.55612397]
[1753397872000,0.4436,3734.7,3733.2,0.55]
[1753397872323,0.4436,3734.7,3732.9,1.61]
[1753397872324,0.4436,3734.7,3734.6,0.55]